bitfinex/quotes_BTCUSD_20260101
["timestamp","ask_amount","ask_price","bid_price","bid_amount"]
[1767280573687,0.04703731,88098.0,88088.0,0.01136]
[1767280574225,0.04703731,88096.0,88088.0,0.01136]
[1767280575265,0.01060783,88095.0,88088.0,0.01136]
[1767280575469,0.04703731,88096.0,88088.0,0.01136]
[1767280575694,0.01060856,88095.0,88088.0,0.01136]
[1767280575891,0.04703731,88096.0,88085.0,0.01135267]
[1767280576115,0.01060856,88095.0,88085.0,0.01135267]
[1767280576441,0.01060856,88094.0,88083.0,0.01135292]
[1767280576717,0.45427667,88093.0,88082.0,0.01156]
[1767280576924,0.45427667,88093.0,88077.0,0.0002511]
[1767280576925,0.04703731,88091.0,88077.0,0.0002511]
[1767280577064,0.04703731,88089.0,88079.0,0.01136]
[1767280577271,0.01061549,88088.0,88079.0,0.01136]
[1767280577854,0.01061549,88088.0,88080.0,0.01135331]
[1767280577997,0.01061549,88088.0,88079.0,0.02271344]
[1767280578205,0.01061549,88088.0,88080.0,0.01135331]
[1767280578829,0.01061549,88088.0,88079.0,0.02271344]
[1767280579024,0.01061549,88088.0,88079.0,0.01136]
[1767280579768,0.02447708,88087.0,88079.0,0.01136]
[1767280579990,0.0576528,88086.0,88079.0,0.01136]
[1767280580133,0.0576528,88085.0,88079.0,0.01136]
[1767280580331,0.04703731,88083.0,88079.0,0.01136]
[1767280580991,0.44366811,88090.0,88083.0,0.000549]
[1767280581194,0.03510729,88089.0,88083.0,0.000549]
[1767280581391,0.03510729,88088.0,88080.0,0.01135331]
[1767280581605,0.03510729,88087.0,88080.0,0.01135331]
[1767280581795,0.01062587,88086.0,88079.0,0.01136]
[1767280581998,0.01062587,88085.0,88079.0,0.01136]
[1767280582161,0.04703731,88089.0,88085.0,0.000549]
[1767280582359,0.04823707,88087.0,88079.0,0.01136]
[1767280582663,0.01062855,88086.0,88079.0,0.01136]
[1767280583248,0.01062964,88085.0,88079.0,0.01136]
[1767280583445,0.01062964,88084.0,88079.0,0.01136]
[1767280583678,0.01062964,88083.0,88079.0,0.01136]
[1767280583919,0.04823707,88087.0,88079.0,0.01136]
[1767280584119,0.01062983,88086.0,88079.0,0.01136]
[1767280584433,0.01062983,88085.0,88079.0,0.02271344]
[1767280584653,0.01062983,88084.0,88080.0,0.01135331]
[1767280584804,0.04823707,88087.0,88084.0,0.000549]
[1767280585000,0.0106304,88086.0,88079.0,0.02271344]
[1767280585314,0.0106304,88085.0,88079.0,0.02271344]
[1767280585481,0.0106304,88084.0,88079.0,0.02271344]
[1767280585686,0.44366811,88090.0,88079.0,0.02271344]
[1767280585923,0.03512421,88089.0,88079.0,0.02271344]
[1767280586097,0.03512421,88088.0,88079.0,0.01136]
[1767280586304,0.01063099,88087.0,88079.0,0.02271344]
[1767280586507,0.01063099,88086.0,88079.0,0.02271344]
[1767280586705,0.01063099,88085.0,88079.0,0.02271344]
[1767280586905,0.44366811,88090.0,88079.0,0.02271344]
[1767280587109,0.03512618,88089.0,88079.0,0.02271344]
[1767280587322,0.03512618,88088.0,88080.0,0.01135331]
[1767280587484,0.01063158,88087.0,88079.0,0.02271344]
[1767280587717,0.01063158,88086.0,88079.0,0.02271344]
[1767280587923,0.44366811,88090.0,88080.0,0.01135331]
[1767280588155,0.03512844,88089.0,88080.0,0.01135331]
[1767280588300,0.01063226,88088.0,88079.0,0.02271344]
[1767280588483,0.01063226,88087.0,88079.0,0.02271344]
[1767280588687,0.01063226,88086.0,88079.0,0.02271344]
[1767280588891,0.44366811,88090.0,88079.0,0.02271344]
[1767280589126,0.03513067,88089.0,88079.0,0.01136]
[1767280589383,0.01063293,88088.0,88079.0,0.02271344]
[1767280589610,0.44366811,88090.0,88079.0,0.02271344]
[1767280589742,0.0351329,88089.0,88079.0,0.01060181]
[1767280589973,0.01063362,88088.0,88079.0,0.01060181]
[1767280590255,0.0002,88089.0,88079.0,0.01060181]
[1767280590473,0.01063359,88088.0,88079.0,0.01060181]
[1767280590684,0.04746197,88088.0,88079.0,0.01060181]
[1767280590887,0.04746197,88086.0,88069.0,0.01155473]
[1767280591129,0.49113008,88080.0,88073.0,0.01136]
[1767280591307,0.04746197,88080.0,88073.0,0.02271421]
[1767280591719,0.04691297,88080.0,88073.0,0.02271421]
[1767280591892,0.04691297,88080.0,88073.0,0.01136]
[1767280592247,0.04691297,88080.0,88072.0,0.01135434]
[1767280592394,0.04691297,88080.0,88070.0,0.0113546]
[1767280592595,0.04691297,88080.0,88069.0,0.02291473]
[1767280592596,0.4902724,88080.0,88071.0,0.01135447]
[1767280593184,0.4902724,88080.0,88070.0,0.0113546]
[1767280593387,0.4902724,88080.0,88069.0,0.02291473]
[1767280593715,0.4902724,88080.0,88070.0,0.0113546]
[1767280594118,0.4902724,88080.0,88072.0,0.01135434]
[1767280594318,0.04691297,88080.0,88070.0,0.0113546]
[1767280594565,0.04691297,88080.0,88069.0,0.01156]
[1767280594773,0.04746197,88079.0,88069.0,0.01156]
[1767280595051,0.04746197,88079.0,88069.0,0.02291473]
[1767280595840,0.04746197,88079.0,88070.0,0.0113546]
[1767280597144,0.0002,88089.0,88079.0,0.04625233]
[1767280597315,0.0002,88089.0,88079.0,0.04570233]
[1767280597508,0.0247133,88089.0,88080.0,0.01135331]
[1767280598246,0.0002,88089.0,88080.0,0.01135331]
[1767280598444,0.0002,88089.0,88079.0,0.05705577]
[1767280599219,0.0002,88089.0,88080.0,0.01135331]
[1767280599532,0.0002,88089.0,88079.0,0.05705577]
[1767280599722,0.0002,88089.0,88080.0,0.01135331]
[1767280600370,0.02472127,88089.0,88080.0,0.01135331]
[1767280600531,0.0002,88089.0,88080.0,0.01135331]
[1767280601148,0.02472127,88089.0,88080.0,0.01135331]
[1767280601353,0.0002,88089.0,88080.0,0.01135331]
[1767280601568,0.01296494,88093.0,88085.0,0.01135267]
[1767280601769,0.0114,88099.0,88085.0,0.01135267]
[1767280601968,0.05810596,88098.0,88086.0,0.01135254]
[1767280602168,0.05810596,88097.0,88082.0,0.05705538]
[1767280602351,0.05810596,88096.0,88085.0,0.01135267]
[1767280602559,0.01064399,88095.0,88084.0,0.01135279]
[1767280602762,0.01064399,88095.0,88085.0,0.01135267]
[1767280602972,0.01064399,88095.0,88086.0,0.01135254]
[1767280603167,0.01064399,88095.0,88084.0,0.01135279]
[1767280603691,0.01064399,88095.0,88085.0,0.01135267]
[1767280604255,0.01064399,88095.0,88087.0,0.01135241]
[1767280604654,0.01064399,88095.0,88086.0,0.01135254]
[1767280604866,0.01064399,88095.0,88087.0,0.01135241]
[1767280605069,0.01064399,88095.0,88086.0,0.01135254]
[1767280605272,0.01064399,88095.0,88087.0,0.01135241]
[1767280605471,0.01064399,88095.0,88088.0,0.01135228]
[1767280605725,0.04746197,88098.0,88095.0,0.000246]
[1767280605926,0.01065106,88097.0,88088.0,0.01135228]
[1767280606075,0.01065106,88096.0,88090.0,0.01135202]
[1767280606286,0.01065106,88095.0,88090.0,0.01135202]
[1767280606479,0.01065106,88094.0,88089.0,0.01135215]
[1767280606686,0.01065106,88093.0,88087.0,0.01135241]
[1767280606889,0.04746197,88098.0,88088.0,0.01135228]
[1767280607194,0.01065341,88097.0,88089.0,0.01135215]
[1767280607396,0.01065341,88096.0,88088.0,0.01135228]
[1767280607602,0.05811538,88095.0,88091.0,0.01135189]
[1767280607796,0.04746197,88095.0,88091.0,0.01135189]
[1767280607997,0.04746197,88095.0,88090.0,0.01135202]
[1767280608422,0.04746197,88095.0,88091.0,0.01135189]
[1767280608604,0.04746197,88095.0,88089.0,0.01135215]
[1767280609221,0.04746197,88095.0,88091.0,0.01135189]
[1767280609645,0.04746197,88095.0,88092.0,0.01135176]
[1767280609847,0.04746197,88095.0,88091.0,0.01135189]
[1767280610284,0.04746197,88095.0,88090.0,0.01135202]
[1767280610502,0.04746197,88095.0,88087.0,0.01135241]
[1767280610700,0.0106514,88094.0,88087.0,0.01135241]
[1767280610825,0.04746197,88095.0,88088.0,0.01135228]
[1767280611626,0.04746197,88095.0,88089.0,0.01135215]
[1767280611905,0.04746197,88095.0,88088.0,0.01135228]
[1767280612080,0.000549,88089.0,88085.0,0.01135267]
[1767280612260,0.04746197,88095.0,88085.0,0.01135267]
[1767280612461,0.04746197,88095.0,88084.0,0.06811655]
[1767280612660,0.04746197,88095.0,88085.0,0.01135267]
[1767280612868,0.04746197,88095.0,88080.0,0.01135331]
[1767280613063,0.4908214,88092.0,88081.0,0.01135318]
[1767280613404,0.04746197,88092.0,88081.0,0.01135318]
[1767280613602,0.02454005,88091.0,88081.0,0.01135318]
[1767280613900,0.02454005,88091.0,88080.0,0.45471274]
[1767280614069,0.02454005,88091.0,88080.0,0.44335943]
[1767280614278,0.02454005,88091.0,88080.0,0.45471274]
[1767280614483,0.02454005,88091.0,88080.0,0.44335943]
[1767280615774,0.02454005,88091.0,88080.0,0.45471274]
[1767280616192,0.02454005,88091.0,88082.0,0.01135305]
[1767280616397,0.02454005,88091.0,88080.0,0.44335943]
[1767280617188,0.02454005,88091.0,88080.0,0.45471274]
[1767280617661,0.02454005,88091.0,88080.0,0.44335943]
[1767280617996,0.04746197,88092.0,88079.0,0.0114]
[1767280618239,0.02454012,88091.0,88079.0,0.02275344]
[1767280618590,0.02454012,88091.0,88080.0,0.01135331]
[1767280619052,0.02454012,88091.0,88084.0,0.01135279]
[1767280619347,0.04746197,88092.0,88084.0,0.01135279]
[1767280619497,0.04746197,88092.0,88081.0,0.06811892]
[1767280619697,0.04746197,88092.0,88082.0,0.01135305]
[1767280620098,0.02453961,88091.0,88082.0,0.01135305]
[1767280620711,0.02453961,88091.0,88086.0,0.01135254]
[1767280620912,0.04571795,88097.0,88086.0,0.01135254]
[1767280621158,0.03518985,88096.0,88086.0,0.01135254]
[1767280621394,0.03518985,88096.0,88084.0,0.01135279]
[1767280621395,0.03518985,88095.0,88085.0,0.01135267]
[1767280621609,0.03518985,88094.0,88084.0,0.01135279]
[1767280621811,0.02453916,88093.0,88084.0,0.01135279]
[1767280622016,0.02453916,88092.0,88084.0,0.01135279]
[1767280622149,0.02453916,88091.0,88085.0,0.01135267]
[1767280622352,0.01136,88095.0,88085.0,0.01135267]
[1767280622630,0.02453942,88094.0,88087.0,0.01135241]
[1767280622951,0.02453942,88094.0,88087.0,0.06811424]
[1767280623192,0.02453942,88094.0,88089.0,0.01135215]
[1767280624184,0.02453942,88094.0,88090.0,0.01135202]
[1767280624379,0.02453942,88094.0,88091.0,0.01135189]
[1767280624652,0.02453942,88094.0,88090.0,0.01135202]
[1767280625152,0.02453942,88094.0,88091.0,0.01135189]
[1767280625330,0.0194982,88094.0,88091.0,0.01135189]
[1767280625542,0.0194982,88094.0,88090.0,0.01135202]
[1767280625901,0.0194982,88094.0,88091.0,0.01135189]
[1767280626109,0.01136,88095.0,88092.0,0.01135176]
[1767280626309,0.01136,88095.0,88091.0,0.01135189]
[1767280626733,0.01136,88095.0,88092.0,0.01135176]
[1767280626942,0.03067395,88108.0,88099.0,0.01135086]
[1767280627175,0.04590925,88111.0,88099.0,0.05813991]
[1767280627176,0.01136,88106.0,88099.0,0.05813991]
[1767280627372,1e-08,88102.0,88100.0,0.05675368]
[1767280628201,1e-08,88102.0,88101.0,0.04678905]
[1767280628420,0.45471943,88110.0,88104.0,0.01135022]
[1767280628620,0.0001913,88111.0,88104.0,0.01135022]
[1767280629342,0.0001913,88111.0,88101.0,0.0113506]
[1767280629554,0.44355073,88111.0,88104.0,0.01135022]
[1767280629762,0.0001913,88111.0,88104.0,0.01135022]
[1767280629973,0.0001913,88111.0,88103.0,0.01135035]
[1767280630407,0.0001913,88111.0,88102.0,0.01135048]
[1767280630826,0.0001913,88111.0,88103.0,0.01135035]
[1767280631499,0.0001913,88111.0,88103.0,0.06810207]
[1767280631693,0.0001913,88111.0,88102.0,0.01135048]
[1767280631876,0.0001913,88111.0,88103.0,0.01135035]
[1767280632075,0.0001913,88111.0,88102.0,0.01135048]
[1767280632473,0.0001913,88111.0,88104.0,0.01135022]
[1767280632673,0.0001913,88111.0,88105.0,0.01135009]
[1767280633065,0.0001913,88111.0,88104.0,0.01135022]
[1767280634304,0.0001913,88111.0,88105.0,0.01135009]
[1767280634890,0.0001913,88111.0,88107.0,0.01134983]
[1767280635483,0.0001913,88111.0,88108.0,0.0113497]
[1767280635689,0.0001,88117.0,88109.0,0.01134957]
[1767280635887,0.0001,88117.0,88110.0,0.01134944]
[1767280636077,0.0001,88117.0,88112.0,0.01134919]
[1767280636277,0.0001,88117.0,88113.0,0.01134906]
[1767280636504,0.0001,88117.0,88112.0,0.01134919]
[1767280636699,0.0001,88117.0,88111.0,0.01134932]
[1767280637146,0.0001,88117.0,88110.0,0.04678905]
[1767280637356,0.000549,88111.0,88110.0,0.04678905]
[1767280637710,0.0001,88117.0,88110.0,0.04678905]
[1767280638586,0.0001,88117.0,88110.0,0.05813849]
[1767280639717,0.0001,88117.0,88106.0,0.01134996]
[1767280639907,0.000549,88110.0,88108.0,0.05674853]
[1767280640325,0.0001,88117.0,88109.0,0.01134957]
[1767280640530,0.0001,88117.0,88110.0,0.01134944]
[1767280640730,0.0001,88117.0,88109.0,0.05813862]
[1767280640980,0.0001,88117.0,88110.0,0.01134944]
[1767280641192,0.000549,88110.0,88109.0,0.05813862]
[1767280641342,0.0001,88117.0,88112.0,0.01134919]
[1767280641726,0.0001,88117.0,88113.0,0.05813811]
[1767280642358,0.0001,88117.0,88113.0,0.04678905]
[1767280643010,0.0001,88117.0,88112.0,0.01134919]
[1767280643360,0.0001,88117.0,88113.0,0.01134906]
[1767280643806,0.02447899,88121.0,88114.0,0.01134893]
[1767280644125,0.00018378,88124.0,88119.0,0.04789266]
[1767280644400,0.00018378,88124.0,88119.0,0.05924095]
[1767280644756,0.0002,88130.0,88124.0,0.000183]
[1767280644955,0.00030582,88130.0,88124.0,0.000183]
[1767280645374,0.00030582,88130.0,88123.0,0.01134777]
[1767280645578,0.00030582,88130.0,88125.0,0.01134751]
[1767280645752,0.00024045,88135.0,88127.0,0.04789266]
[1767280645957,0.04702285,88135.0,88124.0,0.01134764]
[1767280646188,0.04702285,88135.0,88124.0,0.00010582]
[1767280646391,0.04702285,88135.0,88125.0,0.01134751]
[1767280646655,0.04702285,88135.0,88126.0,0.01134738]
[1767280646860,0.04702285,88135.0,88125.0,0.06808474]
[1767280647000,0.04702285,88135.0,88125.0,0.01134751]
[1767280647200,0.04702285,88135.0,88124.0,0.01145346]
[1767280647201,0.04702285,88135.0,88126.0,0.01134738]
[1767280648021,0.04702285,88135.0,88125.0,0.01134751]
[1767280648215,0.04702285,88135.0,88126.0,0.01134738]
[1767280648976,0.04702285,88135.0,88127.0,0.01134726]
[1767280649114,0.04702285,88135.0,88126.0,0.01134738]
[1767280649315,0.00024045,88135.0,88128.0,0.01134713]
[1767280649541,0.00024045,88135.0,88127.0,0.01134726]
[1767280649756,0.00024045,88135.0,88126.0,0.01134738]
[1767280649942,0.00024045,88135.0,88128.0,0.01134713]
[1767280650203,0.00024045,88135.0,88127.0,0.01134726]
[1767280650613,0.00024045,88135.0,88124.0,0.00010582]
[1767280651248,0.00535131,88123.0,88121.0,0.01134803]
[1767280651450,0.00535131,88123.0,88121.0,0.00600459]
[1767280651810,0.00535131,88123.0,88120.0,0.01134816]
[1767280652016,0.00535131,88123.0,88108.0,0.05924236]
[1767280652325,0.49014183,88120.0,88109.0,0.02270957]
[1767280652514,0.0467824,88120.0,88111.0,0.01134932]
[1767280652719,0.0467824,88120.0,88109.0,0.02270957]
[1767280653145,0.0467824,88120.0,88110.0,0.01134944]
[1767280653340,0.0467824,88120.0,88112.0,0.01134919]
[1767280653625,0.0467824,88120.0,88113.0,0.01129231]
[1767280653830,0.0467824,88120.0,88114.0,0.01134893]
[1767280654241,0.0467824,88120.0,88115.0,0.0113488]
[1767280654373,0.0467824,88120.0,88112.0,0.01134919]
[1767280654573,0.0467824,88120.0,88111.0,0.01134932]
[1767280655222,0.0467824,88120.0,88106.0,0.06809918]
[1767280655555,0.0467824,88119.0,88109.0,0.02270957]
[1767280655737,0.0467824,88119.0,88109.0,0.01136]
[1767280655933,0.0467824,88119.0,88109.0,0.01081]
[1767280656233,0.0469824,88119.0,88109.0,0.01081]
[1767280656782,0.0469824,88119.0,88107.0,0.01134983]
[1767280656981,0.0469824,88119.0,88106.0,0.01134996]
[1767280657218,0.0467824,88117.0,88106.0,0.01134996]
[1767280657437,0.0467824,88117.0,88103.0,0.01136]
[1767280657575,0.01136,88116.0,88103.0,0.01136]
[1767280657775,0.0467824,88115.0,88103.0,0.01136]
[1767280658413,0.0467824,88112.0,88099.0,0.0002]
[1767280658784,0.0467824,88112.0,88099.0,0.01155086]
[1767280659399,0.0467824,88109.0,88099.0,0.0002]
[1767280659653,0.00537352,88107.0,88099.0,0.0002]
[1767280659863,0.00537352,88107.0,88100.0,0.01135073]
[1767280660023,0.00537352,88107.0,88099.0,0.0002]
[1767280661415,0.00537352,88107.0,88099.0,0.01155086]
[1767280661639,0.00537352,88107.0,88099.0,0.0002]
[1767280663673,0.05215592,88107.0,88094.0,0.01136]
[1767280663869,0.0467824,88103.0,88094.0,0.01146578]
[1767280664073,0.0467824,88103.0,88094.0,0.00010578]
[1767280664252,0.0467824,88103.0,88090.0,0.0002252]
[1767280664555,0.04688812,88103.0,88090.0,0.0002252]
[1767280664754,0.04688812,88103.0,88090.0,0.01157722]
[1767280664968,0.44292604,88100.0,88097.0,0.01135112]
[1767280665162,0.01136,88101.0,88095.0,0.01135138]
[1767280665394,0.01136,88101.0,88096.0,0.01135125]
[1767280665795,0.01136,88101.0,88095.0,0.01135138]
[1767280666176,0.00537352,88100.0,88096.0,0.01135125]
[1767280666376,0.00537352,88100.0,88095.0,0.01135138]
[1767280667018,0.00537352,88100.0,88096.0,0.01135125]
[1767280667225,0.00537352,88100.0,88095.0,0.01135138]
[1767280667397,0.00537352,88100.0,88088.0,0.11600589]
[1767280667602,0.00537352,88100.0,88088.0,0.05924494]
[1767280667782,0.00537352,88100.0,88088.0,0.04789266]
[1767280667983,0.00537352,88100.0,88086.0,0.01136]
[1767280667984,0.0467824,88099.0,88086.0,0.01136]
[1767280668642,0.0467824,88099.0,88087.0,0.01135241]
[1767280669006,0.0467824,88099.0,88088.0,0.01135228]
[1767280669208,0.0467824,88099.0,88087.0,0.01135241]
[1767280669605,0.0467824,88099.0,88088.0,0.01135228]
[1767280670108,0.00537352,88098.0,88088.0,0.01135228]
[1767280670308,0.00537352,88098.0,88087.0,0.01135241]
[1767280670540,0.00537352,88098.0,88088.0,0.01135228]
[1767280670980,0.00537352,88098.0,88087.0,0.01135241]
[1767280671773,0.00537352,88098.0,88086.0,0.01136]
[1767280672363,0.05215592,88098.0,88086.0,0.01136]
[1767280672544,0.05215592,88098.0,88086.0,0.02271254]
[1767280672742,0.05215592,88098.0,88086.0,0.01136]
[1767280673064,0.05215592,88098.0,88087.0,0.01135241]
[1767280673247,0.05215592,88098.0,88088.0,0.01135228]
[1767280673444,0.05215592,88098.0,88087.0,0.01135241]
[1767280673867,0.05215592,88098.0,88088.0,0.01135228]
[1767280674071,0.05215592,88098.0,88087.0,0.01135241]
[1767280674641,0.05215592,88098.0,88088.0,0.01135228]
[1767280674843,0.05215592,88098.0,88089.0,0.01135215]
[1767280675091,0.05215592,88098.0,88088.0,0.01135228]
[1767280675998,0.00482352,88098.0,88090.0,0.04837418]
[1767280676227,0.00482352,88098.0,88090.0,0.0597262]
[1767280676399,0.00482352,88098.0,88091.0,0.01135189]
[1767280676602,0.00482352,88098.0,88090.0,0.0597262]
[1767280677012,0.00482352,88098.0,88090.0,0.04837418]
[1767280677216,0.00482352,88098.0,88090.0,0.0597262]
[1767280677924,0.00482352,88098.0,88091.0,0.01135189]
[1767280678103,0.00482352,88098.0,88090.0,0.0597262]
[1767280680314,0.00482352,88098.0,88091.0,0.01135189]
[1767280680615,0.00482352,88098.0,88092.0,0.01135176]
[1767280680808,0.00482352,88098.0,88093.0,0.05950061]
[1767280681179,0.00482352,88098.0,88093.0,0.04814898]
[1767280681384,0.00010572,88103.0,88098.0,0.04814898]
[1767280681626,0.0114,88109.0,88099.0,0.01135086]
[1767280681872,0.0114,88109.0,88100.0,0.04814898]
[1767280682596,0.0114,88111.0,88097.0,0.04814898]
[1767280682727,0.03513035,88110.0,88097.0,0.0595001]
[1767280682931,0.03513035,88109.0,88097.0,0.04814898]
[1767280683135,0.0114,88111.0,88097.0,0.04814898]
[1767280683329,0.03513265,88110.0,88097.0,0.04814898]
[1767280683554,0.03513265,88109.0,88097.0,0.04814898]
[1767280683752,0.02449847,88108.0,88097.0,0.04814898]
[1767280683960,0.0114,88111.0,88097.0,0.04759998]
[1767280684130,0.03513652,88110.0,88097.0,0.04759998]
[1767280684374,0.03513652,88109.0,88097.0,0.04759998]
[1767280684575,0.03513652,88108.0,88097.0,0.0589511]
[1767280684778,0.0114,88111.0,88097.0,0.04759998]
[1767280684957,0.03514406,88110.0,88097.0,0.04759998]
[1767280685157,0.03514406,88109.0,88097.0,0.0589511]
[1767280685488,0.0114,88111.0,88097.0,0.0589511]
[1767280685489,0.03514406,88108.0,88097.0,0.0589511]
[1767280685659,0.02450726,88107.0,88097.0,0.0589511]
[1767280685879,0.0114,88111.0,88097.0,0.0589511]
[1767280686079,0.03515324,88110.0,88097.0,0.0589511]
[1767280686371,0.03515324,88109.0,88097.0,0.0589511]
[1767280686682,0.03515324,88108.0,88097.0,0.04759998]
[1767280686905,0.03515324,88107.0,88097.0,0.04759998]
[1767280687065,0.02451367,88106.0,88097.0,0.0589511]
[1767280687264,0.0114,88111.0,88097.0,0.0589511]
[1767280687461,0.03516581,88110.0,88100.0,0.49107502]
[1767280687666,0.03516581,88109.0,88102.0,0.04814898]
[1767280687905,0.03516581,88108.0,88102.0,0.04814898]
[1767280688110,0.02452247,88107.0,88102.0,0.04814898]
[1767280688311,4.403e-05,88110.0,88102.0,0.04814898]
[1767280688483,0.01064422,88109.0,88102.0,0.04814898]
[1767280688709,4.403e-05,88110.0,88102.0,0.04814898]
[1767280688710,0.03516864,88108.0,88102.0,0.04814898]
[1767280688869,0.02452442,88107.0,88102.0,0.04814898]
[1767280689071,4.403e-05,88110.0,88102.0,0.04814898]
[1767280689273,0.0114,88114.0,88102.0,0.04814898]
[1767280689472,0.02452499,88113.0,88102.0,0.04814898]
[1767280690051,0.02452499,88113.0,88103.0,0.04814898]
[1767280690262,0.0002,88119.0,88109.0,0.01134957]
[1767280690455,0.0002,88119.0,88113.0,0.01189806]
[1767280690680,0.0002,88119.0,88115.0,0.0113488]
[1767280691055,0.0002,88119.0,88114.0,0.01134893]
[1767280691271,0.0002,88119.0,88112.0,0.01134919]
[1767280691433,0.0002,88119.0,88113.0,0.01134906]
[1767280692163,0.0002,88119.0,88112.0,0.01134919]
[1767280692399,0.0002,88119.0,88113.0,0.01134906]
[1767280692661,0.0002,88119.0,88114.0,0.01134893]
[1767280693257,0.0002,88119.0,88115.0,0.0113488]
[1767280693459,0.0002,88119.0,88113.0,0.01134906]
[1767280693682,0.0002,88119.0,88110.0,0.06809648]
[1767280693919,0.0002,88119.0,88113.0,0.01134906]
[1767280694263,0.0002,88119.0,88114.0,0.01134893]
[1767280694891,0.0002,88119.0,88112.0,0.01134919]
[1767280695152,0.0002,88119.0,88114.0,0.01134893]
[1767280695619,0.0002,88119.0,88113.0,0.01134906]
[1767280695780,0.0002,88119.0,88114.0,0.01134893]
[1767280695981,0.0002,88119.0,88115.0,0.05949778]
[1767280696186,9.03e-05,88124.0,88115.0,0.05949778]
[1767280696384,9.03e-05,88124.0,88116.0,0.01134867]
[1767280696569,9.03e-05,88124.0,88115.0,0.05949778]
[1767280696802,9.03e-05,88124.0,88115.0,0.04814898]
[1767280697008,9.03e-05,88124.0,88115.0,0.05949778]
[1767280697246,9.03e-05,88124.0,88116.0,0.01134867]
[1767280697422,9.03e-05,88124.0,88115.0,0.05949778]
[1767280697617,9.03e-05,88124.0,88118.0,0.01134841]
[1767280697823,0.0002,88118.0,88115.0,0.05949778]
[1767280698019,0.0002,88118.0,88115.0,0.0113488]
[1767280698222,9.03e-05,88124.0,88117.0,0.01134854]
[1767280698506,9.03e-05,88124.0,88116.0,0.05949765]
[1767280698810,9.03e-05,88124.0,88116.0,0.04814898]
[1767280699014,9.03e-05,88124.0,88116.0,0.04794898]
[1767280699232,9.03e-05,88124.0,88113.0,0.01134906]
[1767280699460,9.03e-05,88124.0,88115.0,0.0113488]
[1767280699666,9.03e-05,88124.0,88111.0,0.0594983]
[1767280699865,9.03e-05,88124.0,88114.0,0.01134893]
[1767280700116,9.03e-05,88124.0,88115.0,0.0113488]
[1767280700434,9.03e-05,88124.0,88109.0,0.44292604]
[1767280700435,0.00055,88115.0,88106.0,0.01134996]
[1767280700667,0.0504716,88115.0,88104.0,0.01135022]
[1767280700864,0.0499216,88115.0,88104.0,0.01135022]
[1767280701070,0.0499216,88115.0,88107.0,0.01134983]
[1767280701682,9.03e-05,88124.0,88108.0,0.0113497]
[1767280701879,0.06054985,88123.0,88107.0,0.01134983]
[1767280702113,0.0499216,88121.0,88107.0,0.01134983]
[1767280702687,0.0499216,88121.0,88106.0,0.01134996]
[1767280703328,0.0499216,88121.0,88106.0,0.11741029]
[1767280703729,9.03e-05,88124.0,88110.0,0.01134944]
[1767280704067,0.01062892,88123.0,88111.0,0.01134932]
[1767280704266,0.0351183,88122.0,88111.0,0.01134932]
[1767280704394,9.03e-05,88124.0,88111.0,0.01134932]
[1767280704592,0.01062945,88123.0,88110.0,0.01134944]
[1767280704794,0.03512,88122.0,88109.0,0.04931091]
[1767280705040,9.03e-05,88124.0,88109.0,0.04931091]
[1767280705041,0.02449055,88121.0,88109.0,0.04931091]
[1767280705241,0.04977465,88123.0,88109.0,0.04931091]
[1767280705386,0.03512222,88122.0,88109.0,0.04931091]
[1767280705744,0.04977465,88123.0,88107.0,0.0114]
[1767280705745,0.02449208,88121.0,88107.0,0.0114]
[1767280705953,0.02449208,88120.0,88107.0,0.0114]
[1767280706153,0.04977465,88123.0,88107.0,0.0114]
[1767280706367,0.04977465,88121.0,88107.0,0.0114]
[1767280706535,0.07426791,88120.0,88107.0,0.0114]
[1767280706739,0.04977465,88120.0,88107.0,0.0114]
[1767280707342,0.04977465,88119.0,88107.0,0.01085]
[1767280707523,0.04977465,88117.0,88107.0,0.01085]
[1767280707728,0.04977465,88117.0,88103.0,4.403e-05]
[1767280707729,0.04997465,88117.0,88103.0,4.403e-05]
[1767280708331,0.04997465,88117.0,88103.0,0.01139438]
[1767280708530,0.04997465,88117.0,88103.0,4.403e-05]
[1767280710359,0.04977465,88115.0,88103.0,4.403e-05]
[1767280711410,0.04977465,88115.0,88103.0,0.01139438]
[1767280711603,0.04977465,88115.0,88103.0,4.403e-05]
[1767280712367,0.04977465,88115.0,88103.0,0.01139438]
[1767280712570,0.04977465,88115.0,88103.0,4.403e-05]
[1767280712807,0.04977465,88115.0,88104.0,0.01135022]
[1767280713150,0.02451283,88114.0,88105.0,0.01135009]
[1767280713350,0.02396383,88114.0,88105.0,0.01135009]
[1767280714558,0.02396383,88114.0,88106.0,0.01134996]
[1767280714907,0.02396383,88114.0,88104.0,0.01135022]
[1767280715258,0.02396383,88114.0,88103.0,0.01139438]
[1767280715774,0.02396383,88114.0,88103.0,4.403e-05]
[1767280716627,0.0002,88117.0,88103.0,0.04935494]
[1767280716821,0.01064351,88116.0,88103.0,0.04935494]
[1767280717023,0.0002,88117.0,88103.0,0.04935494]
[1767280717325,0.01064351,88116.0,88103.0,0.04935494]
[1767280717519,0.01064351,88115.0,88103.0,0.04935494]
[1767280717733,0.0002,88117.0,88103.0,0.04935494]
[1767280717926,0.01064536,88116.0,88103.0,0.04935494]
[1767280718130,0.01064536,88115.0,88103.0,0.04935494]
[1767280718485,0.0002,88117.0,88103.0,0.04935494]
[1767280718619,0.01064706,88116.0,88103.0,0.04935494]
[1767280718963,0.00050497,88103.0,88101.0,0.01136]
[1767280719338,0.44292899,88111.0,88101.0,0.01136]
[1767280719547,0.44292899,88111.0,88097.0,0.01155112]
[1767280719788,0.44292899,88111.0,88098.0,0.01135099]
[1767280720091,0.04977465,88113.0,88097.0,0.01155112]
[1767280720240,0.01064897,88112.0,88097.0,0.01155112]
[1767280720430,0.01136,88112.0,88098.0,0.04931091]
[1767280720614,0.01136,88112.0,88100.0,0.44292899]
[1767280723075,0.01136,88112.0,88098.0,0.04931091]
[1767280723290,0.01136,88112.0,88100.0,0.44292899]
[1767280724126,0.04977465,88111.0,88097.0,0.0002]
[1767280724354,0.04977465,88109.0,88097.0,0.0002]
[1767280724486,0.04977465,88109.0,88097.0,0.01155112]
[1767280724874,0.04977465,88109.0,88097.0,0.0002]
[1767280725097,0.49270364,88110.0,88097.0,0.0002]
[1767280725279,0.04977465,88109.0,88097.0,0.0002]
[1767280728632,0.44292899,88107.0,88097.0,0.0002]
[1767280728808,0.04977465,88104.0,88083.0,0.0001933]
[1767280729008,0.49270364,88100.0,88085.0,0.01155267]
[1767280729593,0.02453553,88099.0,88085.0,0.0002]
[1767280729795,0.04977465,88098.0,88085.0,0.0002]
[1767280735294,0.04977465,88098.0,88085.0,0.01155267]
[1767280735502,0.04977465,88098.0,88086.0,0.01135254]
[1767280735703,0.04977465,88098.0,88085.0,0.0002]
[1767280736693,0.04977465,88098.0,88085.0,0.01155267]
[1767280736897,0.04977465,88098.0,88085.0,0.0002]
[1767280737297,0.04977465,88098.0,88085.0,0.01155267]
[1767280738793,0.04977465,88098.0,88085.0,0.0002]